fUST/lending_fUST_20240810
["ID","MTS","AMOUNT","RATE_DAILY","PERIOD"]
[334563264,1723219217653,169.744647,0.00014247,2]
[334563298,1723219832663,-1382.73887136,0.0001611,2]
[334563299,1723219832673,-942.37062895,0.00019256,2]
[334563300,1723219832683,-2874.3572457,0.00019543,2]
[334563301,1723219832693,-375.53325299,0.0002,20]
[334563404,1723219840771,-624.46674701,0.0002,20]
[334563405,1723219840782,-164.93320844,0.0002,2]
[334563406,1723219840791,-336.38121722,0.0002,2]
[334563407,1723219840801,-153.0,0.00020041,2]
[334563408,1723219840810,-153.0,0.00020041,2]
[334563409,1723219840820,-153.0,0.00020041,2]
[334563410,1723219840830,-267.8162636,0.00020178,2]
[334563411,1723219840840,-267.8162636,0.00020178,2]
[334563412,1723219840850,-267.8162636,0.00020178,2]
[334563413,1723219840859,-300.0,0.00020277,2]
[334563414,1723219840869,-267.8162636,0.00020278,2]
[334563418,1723219840878,-267.8162636,0.00020278,2]
[334563420,1723219840888,-153.0,0.000203,2]
[334563422,1723219840897,-153.0,0.000203,2]
[334563423,1723219840906,-153.0,0.000203,2]
[334563425,1723219840915,-535.6325272,0.000203,2]
[334563427,1723219840924,-306.0,0.00020384,2]
[334563428,1723219840939,-267.8162636,0.00020411,2]
[334563429,1723219840948,-294.5666805,0.00020548,2]
[334563430,1723219840963,-232.4706765,0.00020548,2]
[334563431,1723219840972,-507.0,0.00020643,2]
[334563432,1723219840982,-1412.0,0.00020643,2]
[334563433,1723219840991,-153.0,0.000207,2]
[334563434,1723219841000,-207.2250634,0.0002074,2]
[334563435,1723219841009,-410.9037432,0.0002074,2]
[334563436,1723219841018,-620.58854265,0.00020791,2]
[334563437,1723219841028,-153.0,0.000208,2]
[334563438,1723219841038,-267.8162636,0.000208,2]
[334563439,1723219841048,-374.5089103,0.000208,2]
[334563440,1723219841058,-267.8162636,0.000208,2]
[334563441,1723219841068,-306.0,0.000208,2]
[334563442,1723219841077,-153.0,0.000208,2]
[334563443,1723219841087,-306.0,0.000208,2]
[334563444,1723219841096,-153.0,0.000208,2]
[334563445,1723219841106,-267.8162636,0.000208,2]
[334563446,1723219841115,-306.0,0.000208,2]
[334563447,1723219841124,-2017.57147823,0.00020814,2]
[334563448,1723219841133,-153.0,0.00020822,2]
[334563449,1723219841145,-153.0,0.00020822,2]
[334563450,1723219841155,-153.0,0.00020822,2]
[334563451,1723219841165,-153.0,0.00020822,2]
[334563452,1723219841174,-760.58439337,0.00020869,2]
[334563453,1723219841188,-2000.0,0.00020889,2]
[334563454,1723219841198,-2000.0,0.0002089,2]
[334563455,1723219841207,-6219.50073617,0.00020914,11]
[334563456,1723219841216,-24821.93667405,0.00020914,2]
[334563498,1723219843536,-836.89345213,0.00020914,2]
[334563499,1723219843571,-11.84079801,0.00020914,2]
[334563544,1723219877169,169.744647,0.00014247,2]
[334563562,1723220815911,169.744647,0.00014247,2]
[334563595,1723221031840,-251.64143621,0.00018,2]
[334563596,1723221031849,-571.35856379,0.00019177,2]
[334563598,1723221031902,-838.05266059,0.00019177,2]
[334563653,1723221039792,-39.81069414,0.00019177,2]
[334563655,1723221039802,-336.38121722,0.0002,2]
[334563657,1723221039811,-164.93320844,0.0002,2]
[334563659,1723221039821,-1074.66071709,0.00020701,2]
[334563661,1723221039831,-1000.0,0.00020704,2]
[334563663,1723221039841,-423.25179895,0.00020709,2]
[334563666,1723221039858,-576.74820105,0.00020709,2]
[334563668,1723221039867,-1000.0,0.00020726,2]
[334563670,1723221039877,-1000.0,0.00020727,2]
[334563671,1723221039886,-1000.0,0.00020752,2]
[334563673,1723221039896,-300.0,0.00020759,2]
[334563675,1723221039906,-1000.0,0.0002076,2]
[334563677,1723221039915,-300.0,0.00020789,2]
[334563680,1723221039926,-1000.0,0.00020789,2]
[334563682,1723221039936,-760.58439337,0.00020814,2]
[334563684,1723221039946,-1000.0,0.00020817,2]
[334563686,1723221039956,-1000.0,0.00020828,2]
[334563688,1723221039969,-1000.0,0.0002084,2]
[334563690,1723221039978,-2000.0,0.00020844,2]
[334563692,1723221039987,-1000.0,0.0002085,2]
[334563694,1723221039998,-1000.0,0.00020864,2]
[334563696,1723221040009,-2000.0,0.00020879,2]
[334563698,1723221040018,-1000.0,0.00020891,2]
[334563700,1723221040027,-267.8162636,0.000209,2]
[334563702,1723221040036,-535.6325272,0.000209,2]
[334563704,1723221040047,-153.0,0.000209,2]
[334563706,1723221040056,-535.6325272,0.000209,2]
[334563708,1723221040066,-535.6325272,0.000209,2]
[334563710,1723221040077,-267.8162636,0.000209,2]
[334563712,1723221040087,-267.8162636,0.000209,2]
[334563714,1723221040096,-306.0,0.000209,2]
[334563715,1723221040106,-153.0,0.000209,2]
[334563716,1723221040116,-24882.377827,0.00020904,3]
[334563717,1723221040125,-179.71,0.00020904,3]
[334563718,1723221040135,-539.16,0.00020904,3]
[334563719,1723221040144,-4055.69017682,0.00020914,11]
[334563773,1723221170559,10571.92659096,0.00025,120]
[334563857,1723222238100,-624.46674701,0.0002,2]
[334563858,1723222238110,-336.38121722,0.0002,2]
[334563859,1723222238120,-620.58854265,0.00020738,2]
[334563860,1723222238130,-300.0,0.00020813,2]
[334563861,1723222238140,-2000.0,0.00020814,2]
[334563862,1723222238157,-760.58439337,0.00020814,2]
[334563863,1723222238166,-2017.57147823,0.00020814,2]
[334563864,1723222238176,-2000.0,0.00020844,2]
[334563865,1723222238185,-150.112234,0.000209,2]
[334563866,1723222238194,-153.0,0.000209,2]
[334563867,1723222238204,-49764.755654,0.00020904,3]
[334563868,1723222238213,-179.71,0.00020904,3]
[334563869,1723222238222,-539.16,0.00020904,3]
[334563870,1723222238232,-2993.10206773,0.00020913,2]
[334563871,1723222238241,-150.01,0.00020913,2]
[334563872,1723222238250,-6219.50073617,0.00020914,11]
[334563873,1723222238259,-7936.52496445,0.00020914,2]
[334563874,1723222238269,-151.0,0.00020914,2]
[334563875,1723222238278,-151.0,0.00020914,2]
[334563876,1723222238287,-151.0,0.00020914,2]
[334563877,1723222238297,-151.0,0.00020914,2]
[334563878,1723222238307,-152.4342,0.00020914,2]
[334563879,1723222238316,-151.0,0.00020914,2]
[334563880,1723222238326,-151.0,0.00020914,2]
[334563881,1723222238336,-151.0,0.00020914,2]
[334563882,1723222238345,-151.0,0.00020914,2]
[334563883,1723222238355,-151.0,0.00020914,2]
[334563884,1723222238365,-151.0,0.00020914,2]
[334563885,1723222238374,-151.0,0.00020914,2]
[334563886,1723222238384,-151.0,0.00020914,2]
[334563887,1723222238394,-151.0,0.00020914,2]
[334563888,1723222238406,-151.0,0.00020914,2]
[334563889,1723222238415,-151.0,0.00020914,2]
[334563890,1723222238424,-151.0,0.00020914,2]
[334563891,1723222238434,-151.0,0.00020914,2]
[334563892,1723222238444,-151.0,0.00020914,2]
[334563893,1723222238453,-151.0,0.00020914,2]
[334563894,1723222238462,-151.0,0.00020914,2]
[334563895,1723222238657,-151.0,0.00020914,2]
[334563896,1723222238667,-151.0,0.00020914,2]
[334563897,1723222238676,-151.0,0.00020914,2]
[334563898,1723222238686,-151.0,0.00020914,2]
[334563899,1723222238695,-151.0,0.00020914,2]
[334563900,1723222238704,-151.0,0.00020914,2]
[334563901,1723222238714,-243.274367,0.00020914,2]
[334563902,1723222238724,-151.0,0.00020914,2]
[334563903,1723222238733,-151.0,0.00020914,2]
[334563904,1723222238743,-151.0,0.00020914,2]
[334563905,1723222238754,-151.0,0.00020914,2]
[334563906,1723222238764,-151.0,0.00020914,2]
[334563907,1723222238774,-310.0,0.00020914,2]
[334563908,1723222238784,-181.910089,0.00020914,2]
[334563909,1723222238794,-450.339433,0.00020914,2]
[334563910,1723222238803,-151.0,0.00020914,2]
[334563911,1723222238814,-245.902881,0.00020914,2]
[334563912,1723222238823,-245.902881,0.00020914,2]
[334563913,1723222238832,-245.902881,0.00020914,2]
[334563914,1723222238842,-245.902881,0.00020914,2]
[334563915,1723222238851,-245.902881,0.00020914,2]
[334563916,1723222238861,-245.902881,0.00020914,2]
[334563917,1723222238870,-245.902881,0.00020914,2]
[334563918,1723222238879,-245.902881,0.00020914,2]
[334563919,1723222238889,-245.902881,0.00020914,2]
[334563920,1723222238905,-245.902881,0.00020914,2]
[334563921,1723222238915,-245.902881,0.00020914,2]
[334563922,1723222238926,-245.902881,0.00020914,2]
[334563923,1723222238937,-245.902881,0.00020914,2]
[334563924,1723222238948,-245.902881,0.00020914,2]
[334563925,1723222238957,-245.902881,0.00020914,2]
[334563926,1723222238967,-245.902881,0.00020914,2]
[334563927,1723222238976,-245.902881,0.00020914,2]
[334563928,1723222238986,-245.902881,0.00020914,2]
[334563929,1723222238995,-245.902881,0.00020914,2]
[334563930,1723222239005,-245.902881,0.00020914,2]
[334563931,1723222239014,-151.0,0.00020914,2]
[334563932,1723222239023,-151.0,0.00020914,2]
[334563933,1723222239033,-151.0,0.00020914,2]
[334563934,1723222239043,-151.0,0.00020914,2]
[334563935,1723222239052,-151.0,0.00020914,2]
[334563936,1723222239062,-151.0,0.00020914,2]
[334563937,1723222239072,-151.0,0.00020914,2]
[334563938,1723222239085,-151.0,0.00020914,2]
[334563939,1723222239095,-151.0,0.00020914,2]
[334563940,1723222239104,-151.0,0.00020914,2]
[334563941,1723222239115,-151.0,0.00020914,2]
[334563942,1723222239124,-151.0,0.00020914,2]
[334563943,1723222239134,-479.783446,0.00020914,2]
[334563944,1723222239145,-479.783446,0.00020914,2]
[334563945,1723222239159,-479.783446,0.00020914,2]
[334563946,1723222239169,-479.783446,0.00020914,2]
[334563947,1723222239179,-479.783446,0.00020914,2]
[334563948,1723222239189,-479.783446,0.00020914,2]
[334563949,1723222239198,-479.783446,0.00020914,2]
[334563950,1723222239207,-479.783446,0.00020914,2]
[334563951,1723222239217,-479.783446,0.00020914,2]
[334563952,1723222239226,-479.783446,0.00020914,2]
[334563953,1723222239236,-479.783446,0.00020914,2]
[334563954,1723222239246,-479.783446,0.00020914,2]
[334563955,1723222239255,-479.783446,0.00020914,2]
[334563956,1723222239265,-151.0,0.00020914,2]
[334563957,1723222239274,-479.783446,0.00020914,2]
[334563958,1723222239284,-151.779904,0.00020914,2]
[334563959,1723222239295,-479.783446,0.00020914,2]
[334563960,1723222239305,-479.783446,0.00020914,2]
[334563961,1723222239314,-479.783446,0.00020914,2]
[334563962,1723222239323,-479.783446,0.00020914,2]
[334563963,1723222239333,-479.783446,0.00020914,2]
[334563964,1723222239342,-479.783442,0.00020914,2]
[334563965,1723222239352,-151.0,0.00020914,2]
[334563966,1723222239362,-151.0,0.00020914,2]
[334563967,1723222239372,-151.0,0.00020914,2]
[334563968,1723222239381,-151.0,0.00020914,2]
[334563969,1723222239391,-151.0,0.00020914,2]
[334563970,1723222239407,-205.343859,0.00020914,2]
[334563971,1723222239417,-176.014961,0.00020914,2]
[334563972,1723222239427,-176.014961,0.00020914,2]
[334563973,1723222239437,-176.014961,0.00020914,2]
[334563975,1723222239446,-36.81480127,0.00020914,2]
[334563980,1723222240073,-139.20015973,0.00020914,2]
[334563981,1723222240084,-176.014961,0.00020914,2]
[334563982,1723222240094,-176.014961,0.00020914,2]
[334563983,1723222240103,-176.014961,0.00020914,2]
[334563984,1723222240113,-176.014961,0.00020914,2]
[334563985,1723222240123,-176.014961,0.00020914,2]
[334563986,1723222240132,-176.014961,0.00020914,2]
[334563987,1723222240141,-176.014961,0.00020914,2]
[334563988,1723222240161,-176.014961,0.00020914,2]
[334563989,1723222240170,-176.014961,0.00020914,2]
[334563990,1723222240179,-176.014961,0.00020914,2]
[334563991,1723222240188,-176.014961,0.00020914,2]
[334563992,1723222240197,-176.014961,0.00020914,2]
[334563993,1723222240205,-176.014961,0.00020914,2]
[334563994,1723222240214,-176.014961,0.00020914,2]
[334563995,1723222240223,-176.014961,0.00020914,2]
[334563996,1723222240232,-176.014964,0.00020914,2]
[334563997,1723222240241,-151.0,0.00020914,2]
[334563998,1723222240251,-151.0,0.00020914,2]
[334563999,1723222240260,-151.0,0.00020914,2]
[334564000,1723222240269,-151.0,0.00020914,2]
[334564001,1723222240278,-151.0,0.00020914,2]
[334564002,1723222240287,-151.0,0.00020914,2]
[334564003,1723222240296,-151.0,0.00020914,2]
[334564004,1723222240305,-151.0,0.00020914,2]
[334564005,1723222240314,-151.0,0.00020914,2]
[334564006,1723222240323,-151.0,0.00020914,2]
[334564007,1723222240334,-151.0,0.00020914,2]
[334564008,1723222240343,-151.0,0.00020914,2]
[334564009,1723222240352,-151.0,0.00020914,2]
[334564010,1723222240362,-151.0,0.00020914,2]
[334564011,1723222240372,-151.0,0.00020914,2]
[334564012,1723222240381,-151.0,0.00020914,2]
[334564013,1723222240390,-151.0,0.00020914,2]
[334564014,1723222240399,-196.815303,0.00020914,2]
[334564015,1723222240409,-438.295614,0.00020914,2]
[334564016,1723222240418,-438.295614,0.00020914,2]
[334564017,1723222240427,-438.295614,0.00020914,2]
[334564018,1723222240436,-438.295614,0.00020914,2]
[334564019,1723222240446,-438.295614,0.00020914,2]
[334564020,1723222240456,-438.295614,0.00020914,2]
[334564021,1723222240467,-438.295623,0.00020914,2]
[334564022,1723222240477,-1670.252813,0.00020914,2]
[334564023,1723222240488,-1670.252813,0.00020914,2]
[334564024,1723222240499,-1670.252813,0.00020914,2]
[334564025,1723222240508,-1670.252812,0.00020914,2]
[334564026,1723222240518,-473.285378,0.00020914,2]
[334564027,1723222240530,-473.285378,0.00020914,2]
[334564028,1723222240540,-473.285378,0.00020914,2]
[334564029,1723222240550,-473.285374,0.00020914,2]
[334564030,1723222240561,-328.462833,0.00020914,2]
[334564031,1723222240571,-328.462833,0.00020914,2]
[334564032,1723222240580,-328.462833,0.00020914,2]
[334564033,1723222240591,-328.462833,0.00020914,2]
[334564034,1723222240600,-328.462833,0.00020914,2]
[334564035,1723222240610,-328.462833,0.00020914,2]
[334564036,1723222240619,-328.462833,0.00020914,2]
[334564037,1723222240628,-328.462833,0.00020914,2]
[334564038,1723222240637,-328.462833,0.00020914,2]
[334564039,1723222240651,-328.462833,0.00020914,2]
[334564040,1723222240661,-328.462833,0.00020914,2]
[334564041,1723222240676,-328.462833,0.00020914,2]
[334564042,1723222240685,-328.462833,0.00020914,2]
[334564043,1723222240696,-328.462833,0.00020914,2]
[334564044,1723222240706,-328.462833,0.00020914,2]
[334564045,1723222240716,-328.462833,0.00020914,2]
[334564046,1723222240726,-328.462833,0.00020914,2]
[334564047,1723222240737,-328.462833,0.00020914,2]
[334564048,1723222240747,-220.88493,0.00020914,2]
[334564049,1723222240757,-328.462833,0.00020914,2]
[334564050,1723222240766,-220.88493,0.00020914,2]
[334564051,1723222240776,-328.462831,0.00020914,2]
[334564052,1723222240785,-220.88493,0.00020914,2]
[334564053,1723222240794,-220.88493,0.00020914,2]
[334564054,1723222240803,-220.88493,0.00020914,2]
[334564055,1723222240813,-220.88493,0.00020914,2]
[334564056,1723222240822,-220.88493,0.00020914,2]
[334564057,1723222240831,-220.88493,0.00020914,2]
[334564058,1723222240841,-220.88493,0.00020914,2]
[334564059,1723222240850,-220.88493,0.00020914,2]
[334564060,1723222240860,-220.88493,0.00020914,2]
[334564061,1723222240870,-220.88493,0.00020914,2]
[334564062,1723222240879,-220.88493,0.00020914,2]
[334564063,1723222240889,-220.88493,0.00020914,2]
[334564064,1723222240905,-220.88493,0.00020914,2]
[334564065,1723222240915,-220.88493,0.00020914,2]
[334564066,1723222240926,-220.88493,0.00020914,2]
[334564067,1723222240935,-220.88493,0.00020914,2]
[334564068,1723222240945,-220.88493,0.00020914,2]
[334564069,1723222240954,-151.0,0.00020914,2]
[334564070,1723222240963,-220.884922,0.00020914,2]
[334564071,1723222240972,-151.0,0.00020914,2]
[334564072,1723222240981,-151.0,0.00020914,2]
[334564073,1723222240991,-209.153535,0.00020914,2]
[334564074,1723222241000,-209.153535,0.00020914,2]
[334564075,1723222241009,-209.153535,0.00020914,2]
[334564076,1723222241019,-151.0,0.00020914,2]
[334564077,1723222241028,-209.153535,0.00020914,2]
[334564078,1723222241037,-209.153535,0.00020914,2]
[334564079,1723222241046,-209.153535,0.00020914,2]
[334564080,1723222241056,-209.153535,0.00020914,2]
[334564081,1723222241066,-614.815429,0.00020914,2]
[334564082,1723222241078,-209.153535,0.00020914,2]
[334564083,1723222241086,-614.815429,0.00020914,2]
[334564084,1723222241097,-209.153535,0.00020914,2]
[334564085,1723222241106,-614.815429,0.00020914,2]
[334564086,1723222241116,-209.153535,0.00020914,2]
[334564087,1723222241125,-614.815429,0.00020914,2]
[334564088,1723222241134,-209.153535,0.00020914,2]
[334564089,1723222241147,-614.815429,0.00020914,2]
[334564090,1723222241157,-209.153535,0.00020914,2]
[334564091,1723222241166,-614.815429,0.00020914,2]
[334564092,1723222241175,-614.815429,0.00020914,2]
[334564093,1723222241184,-209.153535,0.00020914,2]
[334564094,1723222241194,-614.815429,0.00020914,2]
[334564095,1723222241203,-209.153535,0.00020914,2]
[334564096,1723222241213,-614.815429,0.00020914,2]
[334564097,1723222241222,-209.153535,0.00020914,2]
[334564098,1723222241232,-614.815429,0.00020914,2]
[334564099,1723222241241,-209.153535,0.00020914,2]
[334564100,1723222241251,-614.815429,0.00020914,2]
[334564101,1723222241261,-614.815429,0.00020914,2]
[334564102,1723222241271,-209.153535,0.00020914,2]
[334564103,1723222241282,-614.815429,0.00020914,2]
[334564104,1723222241290,-209.153535,0.00020914,2]
[334564105,1723222241299,-209.153535,0.00020914,2]
[334564106,1723222241309,-614.815429,0.00020914,2]
[334564107,1723222241318,-209.153533,0.00020914,2]
[334564108,1723222241327,-614.815429,0.00020914,2]
[334564109,1723222241336,-614.815429,0.00020914,2]
[334564110,1723222241345,-614.815429,0.00020914,2]
[334564111,1723222241354,-614.815429,0.00020914,2]
[334564112,1723222241363,-614.815429,0.00020914,2]
[334564113,1723222241372,-614.81542283,0.00020914,2]
[334564114,1723222241381,-161.719826,0.00020914,2]
[334564115,1723222241391,-161.719826,0.00020914,2]
[334564116,1723222241402,-151.0,0.00020914,2]
[334564117,1723222241411,-161.719826,0.00020914,2]
[334564118,1723222241420,-151.0,0.00020914,2]
[334564119,1723222241430,-161.719826,0.00020914,2]
[334564120,1723222241439,-151.0,0.00020914,2]
[334564121,1723222241449,-161.719826,0.00020914,2]
[334564122,1723222241458,-161.719826,0.00020914,2]
[334564123,1723222241467,-161.719826,0.00020914,2]
[334564124,1723222241476,-161.719826,0.00020914,2]
[334564125,1723222241485,-161.719826,0.00020914,2]
[334564126,1723222241494,-161.719826,0.00020914,2]
[334564127,1723222241505,-161.719826,0.00020914,2]
[334564128,1723222241514,-161.719826,0.00020914,2]
[334564129,1723222241523,-161.719826,0.00020914,2]
[334564130,1723222241532,-161.719826,0.00020914,2]
[334564131,1723222241543,-161.719826,0.00020914,2]
[334564132,1723222241554,-161.719826,0.00020914,2]
[334564133,1723222241564,-161.719826,0.00020914,2]
[334564134,1723222241573,-161.719826,0.00020914,2]
[334564135,1723222241583,-161.719826,0.00020914,2]
[334564136,1723222241592,-161.719825,0.00020914,2]
[334564137,1723222241601,-571.29911804,0.00020914,2]
[334564202,1723222383268,231.193843,0.00014247,2]
[334564206,1723222541397,851.07,0.00016,2]
[334564435,1723223438355,-1163.20555821,0.00019147,2]
[334564436,1723223438365,-833.66398309,0.00019155,2]
[334564437,1723223438375,-336.38121722,0.0002,2]
[334564438,1723223438385,-4141.56529843,0.00020172,2]
[334564439,1723223438394,-300.0,0.00020437,2]
[334564440,1723223438405,-4141.56529843,0.00020457,2]
[334564441,1723223438414,-576.74820105,0.00020549,2]
[334564442,1723223438425,-1000.0,0.0002058,2]
[334564443,1723223438437,-153.0,0.000206,2]
[334564444,1723223438447,-207.2250634,0.000206,2]
[334564445,1723223438456,-153.0,0.000206,2]
[334564446,1723223438465,-214.5148355,0.000206,2]
[334564447,1723223438476,-207.2250634,0.000206,2]
[334564448,1723223438485,-207.2250634,0.000206,2]
[334564449,1723223438494,-414.4501268,0.000206,2]
[334564450,1723223438504,-207.2250634,0.000206,2]
[334564451,1723223438515,-3581.00696688,0.00020669,2]
[334564459,1723223440255,-560.55833157,0.00020669,2]
[334564460,1723223440266,-1000.0,0.00020683,2]
[334564461,1723223440275,-267.8162636,0.000207,2]
[334564462,1723223440284,-535.6325272,0.000207,2]
[334564463,1723223440294,-142.51944666,0.000207,2]
[334564464,1723223440900,-64.70561674,0.000207,2]
[334564465,1723223440910,-153.0,0.000207,2]
[334564466,1723223440919,-207.2250634,0.000207,2]
[334564467,1723223440929,-306.0,0.000207,2]
[334564468,1723223440940,-153.0,0.000207,2]
[334564469,1723223440949,-349.90524,0.000207,2]
[334564470,1723223440959,-207.2250634,0.000207,2]
[334564471,1723223440968,-153.0,0.000207,2]
[334564472,1723223440978,-153.0,0.000207,2]
[334564473,1723223440987,-414.3967899,0.000207,2]
[334564474,1723223440997,-153.0,0.000207,2]
[334564475,1723223441006,-416.3721084,0.000207,2]
[334564476,1723223441015,-153.0,0.000207,2]
[334564477,1723223441024,-206.2341022,0.000207,2]
[334564478,1723223441034,-153.0,0.000207,2]
[334564479,1723223441044,-535.6325272,0.000207,2]
[334564480,1723223441054,-207.2250634,0.000207,2]
[334564481,1723223441064,-153.0,0.000207,2]
[334564482,1723223441073,-267.8162636,0.000207,2]
[334564483,1723223441084,-525.325606,0.000207,2]
[334564484,1723223441093,-207.2250634,0.000207,2]
[334564485,1723223441102,-207.2250634,0.000207,2]
[334564486,1723223441114,-207.2250634,0.000207,2]
[334564487,1723223441124,-267.8162636,0.000207,2]
[334564488,1723223441133,-207.2250634,0.000207,2]
[334564489,1723223441143,-1000.0,0.00020711,2]
[334564490,1723223441153,-300.0,0.0002072,2]
[334564491,1723223441164,-1000.0,0.00020758,2]
[334564492,1723223441174,-1000.0,0.00020766,2]
[334564493,1723223441185,-608.46751472,0.00020786,2]
[334564494,1723223441195,-1000.0,0.00020789,2]
[334564495,1723223441204,-1000.0,0.00020795,2]
[334564496,1723223441214,-1000.0,0.00020795,2]
[334564497,1723223441223,-1000.0,0.00020796,2]
[334564498,1723223441233,-207.2250634,0.000208,2]
[334564499,1723223441243,-267.8162636,0.000208,2]
[334564500,1723223441253,-207.2250634,0.000208,2]
[334564501,1723223441262,-207.2250634,0.000208,2]
[334564502,1723223441271,-153.0,0.000208,2]
[334564503,1723223441281,-207.2250634,0.000208,2]
[334564504,1723223441290,-2000.0,0.00020814,2]
[334564505,1723223441299,-2000.0,0.00020814,2]
[334564506,1723223441309,-500.0,0.00020821,7]
[334564507,1723223441319,-500.0,0.00020821,7]
[334564508,1723223441329,-500.0,0.00020821,7]
[334564509,1723223441340,-500.0,0.00020821,7]
[334564510,1723223441350,-500.0,0.00020821,7]
[334564511,1723223441361,-204.25,0.00020821,7]
[334564512,1723223441371,-294.5666805,0.00020822,2]
[334564513,1723223441380,-153.0,0.00020822,2]
[334564514,1723223441390,-294.5666805,0.00020822,2]
[334564515,1723223441399,-153.0,0.00020822,2]
[334564516,1723223441409,-294.5666805,0.00020822,2]
[334564517,1723223441419,-294.5666805,0.00020822,2]
[334564518,1723223441428,-153.0,0.00020822,2]
[334564519,1723223441443,-294.5666805,0.00020822,2]
[334564520,1723223441453,-153.0,0.00020822,2]
[334564521,1723223441462,-306.0,0.00020822,2]
[334564522,1723223441472,-294.5666805,0.00020822,2]
[334564523,1723223441482,-153.0,0.00020822,2]
[334564524,1723223441492,-294.5666805,0.00020822,2]
[334564525,1723223441501,-153.0,0.00020822,2]
[334564526,1723223441513,-359.42,0.00020876,3]
[334564527,1723223441523,-220.88493,0.00020876,2]
[334564528,1723223441533,-220.88493,0.00020876,2]
[334564529,1723223441543,-209.153535,0.00020876,2]
[334564530,1723223441553,-620.090268,0.00020876,2]
[334564531,1723223441562,-209.153535,0.00020876,2]
[334564532,1723223441572,-620.090268,0.00020876,2]
[334564533,1723223441583,-151.0,0.00020876,2]
[334564534,1723223441592,-151.0,0.00020876,2]
[334564535,1723223441603,-328.462833,0.00020876,2]
[334564536,1723223441612,-151.0,0.00020876,2]
[334564537,1723223441622,-151.0,0.00020876,2]
[334564538,1723223441632,-328.462833,0.00020876,2]
[334564539,1723223441642,-614.815429,0.00020876,2]
[334564540,1723223441652,-614.815429,0.00020876,2]
[334564541,1723223441662,-151.0,0.00020876,2]
[334564542,1723223441672,-151.0,0.00020876,2]
[334564543,1723223441684,-1670.252813,0.00020876,2]
[334564544,1723223441696,-1670.252813,0.00020876,2]
[334564545,1723223441706,-473.285378,0.00020876,2]
[334564546,1723223441717,-161.719826,0.00020876,2]
[334564547,1723223441727,-473.285378,0.00020876,2]
[334564548,1723223441738,-161.719826,0.00020876,2]
[334564549,1723223441905,-151.0,0.00020876,2]
[334564550,1723223441915,-174.880838,0.00020876,2]
[334564551,1723223441925,-174.880838,0.00020876,2]
[334564552,1723223441936,-937.104993,0.00020876,2]
[334564553,1723223441946,-937.104993,0.00020876,2]
[334564554,1723223441955,-937.104993,0.00020876,2]
[334564555,1723223441964,-937.104993,0.00020876,2]
[334564556,1723223441974,-1000.0,0.00020876,2]
[334564557,1723223441983,-151.0,0.00020876,2]
[334564558,1723223441993,-151.0,0.00020876,2]
[334564559,1723223442003,-9099.39463774,0.00020876,2]
[334564560,1723223442321,-154.60555476,0.00020876,2]
[334564567,1723223446252,-207.2250634,0.000206,2]
[334564568,1723223446262,-2433.79475796,0.00020876,2]
[334564610,1723224608157,166.33601691,0.00018799,2]
[334564646,1723224632319,-202.0,0.00019999,2]
[334564647,1723224632330,-336.38121722,0.0002,2]
[334564649,1723224632340,-500.0,0.0002,7]
[334564651,1723224632349,-500.0,0.0002,7]
[334564653,1723224632359,-500.0,0.0002,7]